Cogmind - Beta 15 @@@ ROGUE MODE // 2025.06.16 @ 19:07:44 Player: Envian Result: Destroyed by D-53 Grenadier with Mini Grenade Launcher Performance ------------- Evolutions (0) 0 Regions Visited (2) 400 Robots Destroyed (27) 135 Value Destroyed (627) 627 Prototype IDs (0) 0 Alien Tech Used (0) 0 Bonus (0) 0 TOTAL SCORE: 1162 Bonus ------- None Cogmind --------- Core Integrity 0/250 Matter 300/300 Energy 159/160 System Corruption 0% Temperature Cool (56) Movement Core (250) Ox4 Location -10/Mines Parts ------- > --- POWER (1) -------- Light Nuclear Core > --- PROPULSION (2) --- (None) > --- UTILITY (2) ------ Medium Storage Unit > --- WEAPON (2) ------- (None) > --- INVENTORY (10) --- Light Nuclear Core Aluminum Leg Scrap Suit Small Battery (100) Structural Scanner Hacking Suite Small Laser Hammer Mining Claw Peak State ------------ > --- POWER ------------ Light Nuclear Core > --- PROPULSION ------- Aluminum Leg Aluminum Leg > --- UTILITY ---------- Heat Sink Medium Storage Unit > --- WEAPON ----------- Medium Laser Hammer > --- INVENTORY -------- Light Nuclear Core Aluminum Leg Scrap Suit Small Battery Structural Scanner Hacking Suite Small Laser Small Laser Mining Claw [Rating: 11] Favorites ----------- Power Ion Engine Engine Ion Engine Power Core Light Nuclear Core Propulsion Aluminum Leg Leg Aluminum Leg Utility Heat Sink Device Heat Sink Storage Medium Storage Unit Weapon Medium Laser Energy Gun Medium Laser Impact Weapon Hammer Build | -11 -10 -10 ------- Run | Yrd Mat Min Slots Evolved . | . . . Power . | . . . Propulsion . | . . . Utility . | . . . Weapon . | . . . Parts Attached 12 | 6 6 . Power 2 | 1 1 . Engine 1 | 1 . . Core 1 | . 1 . Reactor . | . . . Propulsion 3 | 2 1 . Treads . | . . . Leg 3 | 2 1 . Wheel . | . . . Hover . | . . . Flight . | . . . Utility 4 | 1 3 . Device 1 | . 1 . Storage 3 | 1 2 . Processor . | . . . Hackware . | . . . Protection . | . . . Artifact . | . . . Weapon 3 | 2 1 . Energy Gun 2 | 2 . . Energy Cannon . | . . . Ballistic Gun . | . . . Ballistic Cannon . | . . . Launcher . | . . . Special Weapon . | . . . Impact Weapon 1 | . 1 . Slashing Weapon . | . . . Piercing Weapon . | . . . Special Melee Weapon . | . . . Unidentified Prototypes . | . . . Parts Lost 7 | . 2 5 Power 1 | . 1 . Propulsion 3 | . 1 2 Utility 1 | . . 1 Weapon 2 | . . 2 Highest Loss Streak 5 | . 2 5 To Critical Strikes . | . . . Average Backups 6 | 1 6 9 Power . | . . 1 Propulsion 1 | . 1 1 Utility 2 | . 2 4 Weapon 1 | . 1 3 Tool/Special . | . . . Unused Backups 10 | . . 10 Power 1 | . . 1 Propulsion 1 | . . 1 Utility 6 | . . 6 Weapon 2 | . . 2 Tool/Special . | . . . Average Slot Usage (%) 98 | . 98 97 Engine 9 | . 10 . Core 4 | . 3 14 Leg 27 | . 28 25 Device 12 | . 12 14 Storage 14 | . 14 14 Energy Gun 24 | . 25 15 Impact Weapon 3 | . 2 12 Peak Build Rating 11 | 6 10 11 Average Rating 7 | 3 7 10 On Entrance 5 | . 6 10 Naked Turns . | . . . Heaviest Build 29 | 13 29 20 Greatest Support 20 | 20 20 20 Greatest Overweight (x) 4 | . 1 4 Average Overweight (x) . | . . . Largest Inventory Capacity 15 | 8 15 10 Average Capacity 9 | 6 9 10 Most Carried 10 | 5 10 10 Average Carried 6 | 1 6 9 Final Capacity 10 | 8 10 10 Final Carried 10 | 1 10 10 Class Distribution -------------------- 100% | Mutant Dominant Class ---------------- Mutant | -10/Materials Mutant | -10/Mines Resources | -11 -10 -10 ----------- Run | Yrd Mat Min Matter Collected 325 | 215 100 10 Remotely . | . . . Salvage Created 860 | . 808 52 Parts 37 | . 34 3 Haulers Intercepted 2 | . 2 . Recyclers Shooed . | . . . Parts Field Recycled . | . . . Retrieved Matter . | . . . Parts Self-Destructed . | . . . Prevented . | . . . Kills | -11 -10 -10 ------- Run | Yrd Mat Min Combat Hostiles Destroyed 17 | . 14 3 Melee 5 | . 3 2 Guns 10 | . 10 . Classes Destroyed 6 | . 5 1 Worker 4 | . 3 1 Hauler 2 | . 2 . Operator 2 | . 2 . Watcher 2 | . 2 . Swarmer 3 | . . 3 Grunt 14 | . 14 . Best Kill Streak 5 | . 5 4 Combat Bots Only 3 | . 3 3 Max Kills in Single Turn 1 | . 1 1 Gunslinging . | . . . Exploded . | . . . Melee 1 | . 1 1 Uniques/NPCs Destroyed . | . . . Combat | -11 -10 -10 -------- Run | Yrd Mat Min Hostile Shots Fired 90 | . 63 27 Missed 26 | . 18 8 Hits 64 | . 45 19 Projectile 64 | . 45 19 AOE 7 | . . 7 Damage Taken 867 | . 542 325 Core 257 | . 136 121 Absorbed by Shields . | . . . Core Remaining (%) 100 | 100 . . Volleys Fired 54 | . 51 3 Largest 2 | . 2 2 Hottest 90 | . 90 90 Shots Fired 106 | . 101 5 Gun 106 | . 101 5 Cannon . | . . . Launcher . | . . . Special . | . . . Kinetic . | . . . Thermal 106 | . 101 5 Explosive . | . . . Electromagnetic . | . . . Robot Hit Streak 15 | . 15 3 Robot Miss Streak 3 | . 3 1 Penetration Max . | . . . Secondary Targets 2 | . 2 . Max Gunslinging Chain 1 | . 1 . Shots Hit Robots 98 | . 86 12 Core Hits 32 | . 30 2 Critical Kills . | . . . Critical Parts Destroyed 5 | . 3 2 Critical Strikes 8 | . 6 2 Burn 3 | . 3 . Smash 5 | . 3 2 Melee Attacks 30 | . 16 14 Impact 30 | . 16 14 Slashing . | . . . Piercing . | . . . Sneak Attacks 5 | . 4 1 Combat Hostiles . | . . . Follow-up Attacks . | . . . Damage Inflicted 1640 | . 1369 271 Guns 874 | . 829 45 Cannons . | . . . Explosions . | . . . Melee 753 | . 527 226 Ramming 13 | . 13 . Kinetic . | . . . Thermal 874 | . 829 45 Explosive . | . . . Electromagnetic . | . . . Impact 753 | . 527 226 Slashing . | . . . Piercing . | . . . Highest Corruption . | . . . Average Corruption . | . . . Corruption Purged . | . . . Corruption Blocked . | . . . Overload Shots . | . . . Overflow Damage 248 | . 185 63 Projectiles . | . . . Explosions . | . . . Melee 248 | . 185 63 Knockbacks 1 | . 1 . Impact 1 | . 1 . Kinetic . | . . . Secondary . | . . . Self-Inflicted Damage . | . . . Shots . | . . . Rammed . | . . . Targets Rammed 4 | . 4 . Kicked 4 | . 4 . Crushed . | . . . Highest Temperature 138 | . 138 56 Average Temperature 28 | . 28 31 Received Heat Transfer 303 | . 303 . Siege Activations . | . . . Martial Activations . | . . . Shielding Activations . | . . . Robots Disrupted . | . . . Combat Hostiles . | . . . Robots Corrupted 6 | . 5 1 Combat Hostiles 1 | . . 1 Parts Fried 11 | . 10 1 Impact Corruptions 16 | . 11 5 Robots Melted 1 | . 1 . Combat Hostiles 1 | . 1 . Parts Melted 5 | . 5 . Heat Transferred 2541 | . 2429 112 Parts Sabotaged . | . . . Parts Stolen . | . . . Parts Stripped . | . . . Power Chain Reactions . | . . . Alert | -11 -10 -10 ------- Run | Yrd Mat Min Maximum Alert Level . | . . . Low Security (%) 100 | 100 100 100 Level 1 . | . . . Level 2 . | . . . Level 3 . | . . . Level 4 . | . . . Level 5 . | . . . High Security . | . . . Max Security . | . . . Peak Influence 100 | . 100 48 Initial 33 | . . 33 Average 26 | . 27 27 Influence Increases 522 | . 447 75 Destroy 0b10 Robot/C 340 | . 280 60 Destroy 0b10 Robot/NC 50 | . 45 5 Destroy Leader 88 | . 78 10 Successful Hack 14 | . 14 . Disable Machine 15 | . 15 . Lose Combat Pursuer 15 | . 15 . Influence Decreases 514 | . 362 152 Entered New Map 52 | . . 52 Time Decay 402 | . 352 50 Lost Part 60 | . 10 50 Squads Dispatched 5 | . 5 . Investigation 3 | . 3 . Extermination . | . . . Reinforcement 2 | . 2 . Assault . | . . . Garrison . | . . . Intercept . | . . . Searches Triggered . | . . . Construction Impeded . | . . . Haulers Reinforced . | . . . Active Scanning Responses . | . . . Cargo Convoy Interrupts . | . . . Stealth | -11 -10 -10 --------- Run | Yrd Mat Min Distress Signals . | . . . Communications Jammed . | . . . Distress Signals . | . . . Times Spotted 31 | . 26 5 Peak Tracking Total 4 | . 3 4 Tactical Retreats 1 | . 1 . Traps | -11 -10 -10 ------- Run | Yrd Mat Min Traps Triggered 3 | . 3 . Indirectly . | . . . Trap Hack Attempts . | . . . Triggered . | . . . Disarmed . | . . . Reprogrammed . | . . . Reused . | . . . Traps Extracted . | . . . Installed . | . . . Triggered . | . . . Machines | -11 -10 -10 ---------- Run | Yrd Mat Min Machines Disabled 1 | . 1 . Max in Single Turn 1 | . 1 . Machines Repaired . | . . . Machines Dismantled . | . . . Machines Sabotaged . | . . . Overloaded Fab Kills . | . . . Hacking | -11 -10 -10 --------- Run | Yrd Mat Min Machines Accessed 5 | . 5 . Terminals 5 | . 5 . Fabricators . | . . . Repair Stations . | . . . Recycling Units . | . . . Scanalyzers . | . . . Garrison Access . | . . . Total Hacks 17 | . 17 . Successful 9 | . 9 . Failed 8 | . 8 . Catastrophic 2 | . 2 . Database Lockouts . | . . . Manual 14 | . 14 . Terminals 17 | . 17 . Fabricators . | . . . Repair Stations . | . . . Recycling Units . | . . . Scanalyzers . | . . . Garrison Access . | . . . Terminal Hacks 5 | . 5 . Robot Analysis 1 | . 1 . Branch Access Points 1 | . 1 . Emergency Access Points 2 | . 2 . Recall Investigation 1 | . 1 . Fabricator Hacks . | . . . Repair Station Hacks . | . . . Recycling Unit Hacks . | . . . Scanalyzer . | . . . Garrison Access Hacks . | . . . Unauthorized Hacks 4 | . 4 . Terminals 4 | . 4 . Botnet 2 | . 2 . Operators 2 | . 2 . Fabricators . | . . . Repair Stations . | . . . Recycling Units . | . . . Scanalyzers . | . . . Garrison Access . | . . . Data Cores Recovered . | . . . Used . | . . . Hacking Detections 4 | . 4 . Full Trace Events . | . . . Feedback Events . | . . . Feedback Blocked . | . . . Robot Schematics Acquired . | . . . Robots Built . | . . . Authchips . | . . . Time . | . . . Total Robot Build Rating . | . . . Part Schematics Acquired . | . . . Parts Built . | . . . Authchips . | . . . Time . | . . . Total Part Build Rating . | . . . Parts Repaired . | . . . Time . | . . . Parts Recycled . | . . . Recycled Matter . | . . . Retrieved Matter . | . . . Retrieved Components . | . . . Parts Scanalyzed . | . . . Part Schematics Acquired . | . . . Parts Damaged . | . . . Bothacking | -11 -10 -10 ------------ Run | Yrd Mat Min Used RIF Installer . | . . . Robots Hacked . | . . . Non-combat . | . . . Combat . | . . . Robot Hacks Applied . | . . . Relay Couplers Released . | . . . Fabnet Peak Effective % . | . . . Robots Rewired . | . . . Allies Hacked . | . . . Hacks Repelled . | . . . Allies | -11 -10 -10 -------- Run | Yrd Mat Min Total Allies . | . . . Largest Group . | . . . Highest-Rated Group . | . . . Highest-Rated Ally . | . . . Total Orders . | . . . Ally Attacks . | . . . Total Damage . | . . . Kills . | . . . Allies Corrupted . | . . . Allies Melted . | . . . Intel | -11 -10 -10 ------- Run | Yrd Mat Min Active Infowar (turns) . | . . . Robot Analysis Total 1 | . 1 . Derelict Logs Recovered 1 | . . 1 Drone Launches . | . . . Drone Recoveries . | . . . Exploration | -11 -10 -10 ------------- Run | Yrd Mat Min Turns Passed 1255 | 37 1100 118 Spaces Moved 715 | 29 630 56 Core 15 | 14 . 1 Treads . | . . . Legs 700 | 15 630 55 Wheels . | . . . Hover . | . . . Flight . | . . . Fastest Speed 50 | 50 120 120 Average Speed 119 | 86 120 123 Slowest Speed 250 | 120 190 250 Overloaded Moves . | . . . Propulsion Burnouts . | . . . Robots Hopped . | . . . Potential Cave-ins . | . . . Cave-ins Triggered . | . . . Exploration Rate (%) 37 | 4 89 19 Regions Visited 2 Branch Regions 1 Pre-discovered Areas 1 | . . 1 Known Exits Taken 1 | . 1 . Unknown Exits Taken 1 | 1 . . Scrap Searched 1 | . . 1 Spaces Dug . | . . . Terrain Destroyed . | . . . Melee . | . . . Projectile . | . . . AOE . | . . . Terrain Rammed . | . . . Walls Destroyed . | . . . Machines Disabled . | . . . Actions | -11 -10 -10 --------- Run | Yrd Mat Min Total 959 | 40 841 78 Wait 120 | . 119 1 Move 713 | 28 629 56 Hop . | . . . Pick Up 21 | 6 14 1 Fast Attach 1 | 1 . . Attach 8 | 5 3 . Detach . | . . . Swap 4 | . 3 1 Drop 4 | . 2 2 Fire 54 | . 51 3 Melee 30 | . 16 14 Ram . | . . . Kick 4 | . 4 . Crush . | . . . Escape Stasis . | . . . Rewire . | . . . Trap . | . . . Miscellaneous . | . . . Route ------- -11/Scrapyard -10/Materials (discovered 4 exits: [*Mat x2] / *Min x2) -10/Mines History --------- Turn | Location | Event 4 | -11/Scrapyard | Discovered new exit (range 14) 38 | -11/Scrapyard | Entered Materials 312 | -10/Materials | Build established: Mutant 365 | -10/Materials | Discovered new exit (range 16) 522 | -10/Materials | Discovered new exit (range 10) 571 | -10/Materials | Discovered new exit (range 6) 625 | -10/Materials | Identified exit to Mines 968 | -10/Materials | Core integrity fell below 50% 1138 | -10/Materials | Entered Mines 1178 | -10/Mines | Assembled infested the area 1186 | -10/Mines | Found a Scrap Suit stashed away for nefarious purposes 1190 | -10/Mines | Found Scrap Suit 1255 | -10/Mines | Core integrity fell below 20% 1256 | -10/Mines | Destroyed by D-53 Grenadier with Mini Grenade Launcher Last Messages --------------- 01228_ S-10 Pest system corrupted by crushing effect. 01239_ Aluminum Leg destroyed. 01239_ S-10 Pest destroyed. 01241_ R-06 Scavenger collects Lgt. Assault Rifle. 01242_ Sneak attack on K-01 Serf. 01242_ K-01 Serf destroyed. 01244_ R-06 Scavenger collects Lgt. Ion Engine. 01246_ U-05 Engineer destroyed. 01247_ U-05 Engineer lays Concrete. 01248_ Acquired 10 matter. 01248_ U-05 Engineer lays Concrete. 01248_ R-06 Scavenger destroyed. 01248_ U-05 Engineer destroyed. 01249_ The unstable cave ceiling collapses. 01249_ K-01 Serf collects debris. 01250_ Aluminum Leg destroyed. 01250_ Heat Sink destroyed. 01252_ Med. Laser destroyed. 01254_ Sml. Laser destroyed. 01254_ K-01 Serf destroyed. Map ----- +----------------------------------------------------+ | ?????????????????????????????????????????????????? | | ?????????????????????????????????????????????????? | | ?????????????????????????????????????????????????? | | ?????????????????????????????????????????????????? | | ?????????????????????????????? ??????????????????? | | ????????????????????????????## ?????????????????? | | ???????????????????????????## ?????????????????? | | ???????????????????????????# ?????????????????? | | ?????????# ???????????????? ?????????????????? | | ???????? ???????????????? ?????????????????? | | ???????? ???????????????? #?????????????????? | | ???????? ????????????????# #?????????????????? | | ????????# ????????????????# #?????????????????? | | ????????# ????????????????# #?????????????????? | | ????????# ????????????????# #?????????????????? | | ???????## ##??????????????# #?????????????????? | | ???????# ##?????????????# ##????????????????? | | ???????# ##????????????# ##???????????????? | | ???????# #???????????## #???????????????? | | ??????## ???????###### #???????????????? | | ?????## ?????#### !##???????????????? | | ?????# #????## ####????????????????? | | ###### ###### =d #??????????????????? | | ##??????????????????? | | % d #??????????????????? | | "" ##### # #### @ #??????????????????? | | "" #???##### #??## ##??????????????????? | | "" ##??????# #???##### ?????????????????? | | ######## #???????## # ??????????????? | | !%!= #????????####### ????????????? | | ###########???????????????#### #??????????? | | ##??????????????????????????????## #??????????? | | #?????????????????????????????????? #??????????? | | ?????????????????????????????????????????????? | | ???????????????????????????????????????????? | | #######??????????????????????????????????????????? | | #????????????????????????????????????????????????? | | ?????????????????????????????????????????????????? | | ?????????????????????????????????????????????????? | | ?????????????????????????????????????????????????? | | ?????????????????????????????????????????????????? | | ?????????????????????????????????????????????????? | | ?????????????????????????????????????????????????? | | ?????????????????????????????????????????????????? | | ?????????????????????????????????????????????????? | | ?????????????????????????????????????????????????? | | ?????????????????????????????????????????????????? | | ?????????????????????????????????????????????????? | | ?????????????????????????????????????????????????? | | ?????????????????????????????????????????????????? | +----------------------------------------------------+ Best States ------------- Heat Dissipation 35 Energy Generation 14 Energy Capacity 250 Matter Stores 300 Matter Capacity 300 Sight Range 16 Terrain Scan Density 10 Evasion (%) 55 Item Schematics ----------------- None Robot Schematics ------------------ None Fabricated ------------ Nothing Repaired ---------- Nothing Alien Tech Used ----------------- None Achievements -------------- root@ Challenges ------------ None Game ------ Seed SpliceMakeshiftSuite Manual? 0 Play Time 00:19:04 Cumulative 32.8 hours Start 2025.06.16 @ 18:27:44 End 2025.06.16 @ 19:07:44 Sessions 1 Manual Loads 0 Difficulty Rogue Special Mode None Game No. 40 Rogue 40 Adventurer 0 Explorer 0 Win Type - Total 1 Types 1/0/0/0/0/0/0/0/0/0 Lore% 17 Gallery% 26 Achievement% 31 Wizard Run 0 Options --------- Layout 0 ASCII 0 Keyboard 0 Movement Numpad Keybinds 0 Fullscreen 1 Font 24/Smallcaps Map View 76x50 Zoom Use 0% Tactical HUD 1 Map Filters NONE Filters NONE Steam 1 RUN: 0c3e5b42-22a8-4c81-92be-46422f1486fe